bitfinex-derivatives/quotes_ETHF0:USTF0_20260303
["timestamp","ask_amount","ask_price","bid_price","bid_amount"]
[1772566421639,0.0063555,1984.8,1984.1,4.89307137]
[1772566422230,7.578,1985.2,1984.1,4.89307137]
[1772566422231,5.07471563,1985.1,1984.3,4.88804387]
[1772566422634,5.07471563,1985.3,1984.3,4.88804387]
[1772566423239,5.08088332,1985.3,1984.5,4.88804387]
[1772566423441,0.00616769,1985.3,1984.6,4.88804387]
[1772566423938,12.66371563,1985.7,1984.8,4.88804387]
[1772566424243,5.07471563,1985.7,1985.0,4.88804387]
[1772566424838,5.07471563,1985.9,1985.0,4.88804387]
[1772566425142,0.00548957,1985.7,1985.0,4.88804387]
[1772566425944,5.0802052,1985.7,1985.0,4.88804387]
[1772566426137,5.0802052,1985.7,1984.8,4.88804387]
[1772566429548,4.67760975,1985.5,1984.8,4.88804387]
[1772566430045,0.00548957,1985.7,1984.8,5.13994387]
[1772566430247,4.68309932,1985.7,1984.8,5.13994387]
[1772566431344,4.67760975,1985.5,1984.8,4.88804387]
[1772566432743,4.67760975,1985.4,1984.5,4.65238849]
[1772566435047,4.67760975,1985.3,1984.3,4.65238849]
[1772566437550,5.09726045,1985.2,1984.1,4.65741599]
[1772566437753,4.67760975,1985.0,1984.1,4.65741599]
[1772566437951,4.67760975,1984.6,1983.7,4.65238849]
[1772566438153,4.67760975,1984.5,1983.7,4.65238849]
[1772566439047,4.67760975,1984.5,1983.7,4.65762294]
[1772566440952,4.67760975,1984.7,1983.9,4.65238849]
[1772566441253,4.67760975,1984.7,1984.0,4.65238849]
[1772566441650,4.67760975,1984.7,1983.8,4.90441849]
[1772566442253,4.67760975,1984.9,1983.8,4.90441849]
[1772566446256,4.67760975,1985.1,1983.8,4.90441849]
[1772566446961,4.67760975,1984.9,1983.8,4.65238849]
[1772566447860,4.67760975,1984.9,1984.0,4.65238849]
[1772566450360,4.67760975,1984.9,1983.8,4.65238849]
[1772566450557,4.67760975,1984.6,1983.8,4.65238849]
[1772566450858,4.67760975,1984.4,1983.7,0.00523445]
[1772566451256,4.67760975,1984.1,1983.2,4.65238849]
[1772566451561,4.67760975,1983.9,1982.9,4.65238849]
[1772566452265,4.68405223,1983.9,1982.9,4.65830357]
[1772566452763,7.42463185,1983.9,1982.9,0.00591508]
[1772566453067,4.67760975,1983.8,1982.9,0.00591508]
[1772566453665,4.67760975,1983.8,1982.9,4.65830357]
[1772566455260,4.67760975,1983.8,1983.0,0.25213]
[1772566455565,4.68405223,1983.9,1983.1,4.65238849]
[1772566457466,0.00644248,1983.9,1983.3,4.65238849]
[1772566458064,0.00644248,1983.9,1983.3,11.40138849]
[1772566458259,4.87277333,1984.3,1983.4,5.05221981]
[1772566458464,4.87277333,1984.3,1983.5,0.25207]
[1772566458773,4.87277333,1984.3,1983.6,5.05221981]
[1772566459068,6.17477748,1985.0,1983.3,6.749]
[1772566459069,5.03050665,1984.6,1983.8,4.6128351]
[1772566459272,5.03618382,1984.3,1983.8,4.6128351]
[1772566459760,0.00567717,1984.3,1983.8,4.6128351]
[1772566460668,5.03618382,1984.3,1983.8,4.6128351]
[1772566461566,0.00567717,1984.3,1983.8,4.6128351]
[1772566462169,5.03050665,1984.7,1983.8,4.6128351]
[1772566462865,5.03050665,1984.7,1983.6,4.6128351]
[1772566463270,5.03501364,1984.7,1983.6,4.6128351]
[1772566463772,5.03050665,1984.6,1983.6,4.6128351]
[1772566463969,5.03050665,1984.2,1983.2,4.6128351]
[1772566465071,5.03050665,1983.9,1983.0,4.6128351]
[1772566465271,5.03050665,1983.8,1983.0,4.6128351]
[1772566466567,5.03050665,1983.8,1982.8,4.6128351]
[1772566466765,5.03050665,1983.8,1982.5,4.6128351]
[1772566467673,5.03050665,1983.8,1982.5,4.61662191]
[1772566468074,5.03050665,1983.5,1982.5,4.61662191]
[1772566468266,5.03050665,1983.2,1981.8,4.6128351]
[1772566468471,5.03050665,1982.9,1981.6,4.6128351]
[1772566468671,5.03050665,1982.6,1981.6,4.6128351]
[1772566469268,5.03050665,1982.6,1981.3,4.6128351]
[1772566469466,5.03539802,1982.6,1981.7,4.6128351]
[1772566470166,5.03539802,1982.6,1981.6,0.0044682]
[1772566471272,5.03539802,1982.6,1981.6,4.6173033]
[1772566473976,5.03539802,1982.6,1981.6,4.8696033]
[1772566477273,0.00489137,1982.6,1982.1,4.6128351]
[1772566477881,5.03050665,1982.9,1982.1,4.6128351]
[1772566478781,5.03407156,1982.9,1982.1,4.6128351]
[1772566478981,0.00356491,1982.9,1982.1,4.6128351]
[1772566479181,0.00356491,1982.9,1982.3,4.6128351]
[1772566480687,5.03407156,1982.9,1982.3,4.6128351]
[1772566481483,0.00356491,1982.9,1982.3,4.6128351]
[1772566482283,0.00356491,1982.9,1982.5,4.6128351]
[1772566482585,5.03050665,1983.3,1982.5,4.6128351]
[1772566483484,5.03466701,1983.3,1982.5,4.6128351]
[1772566483982,5.03050665,1982.9,1982.1,4.6128351]
[1772566484191,5.03050665,1982.7,1981.9,4.6128351]
[1772566488392,4.48980174,1982.7,1981.9,4.6128351]
[1772566489393,4.48980174,1982.7,1981.9,4.8650951]
[1772566489894,4.48980174,1982.9,1981.9,4.8650951]
[1772566493496,7.796,1983.0,1981.9,4.8650951]
[1772566493999,0.25212,1983.2,1981.9,4.8650951]
[1772566494000,4.48980174,1983.2,1981.9,4.8650951]
[1772566495803,4.48980174,1983.2,1982.3,4.54412964]
[1772566499401,4.48980174,1983.2,1982.5,4.54412964]
[1772566500300,4.48980174,1983.2,1982.1,4.54412964]
[1772566501702,4.48980174,1983.2,1982.3,4.54412964]
[1772566504704,4.48980174,1983.2,1982.1,4.54412964]
[1772566504908,4.48980174,1983.0,1982.1,4.54412964]
[1772566505104,4.48980174,1983.0,1981.7,4.54412964]
[1772566505105,4.74197174,1982.8,1981.7,4.54412964]
[1772566505405,4.48980174,1982.4,1981.6,0.0044682]
[1772566505606,4.48980174,1982.2,1981.6,0.0044682]
[1772566505807,4.48980174,1982.1,1981.3,4.54412964]
[1772566506715,4.48980174,1982.1,1981.3,4.5488936]
[1772566510203,7.807,1982.2,1981.3,4.5488936]
[1772566510400,12.29680174,1982.2,1981.3,4.5488936]
[1772566510804,4.48980174,1982.3,1981.5,4.54412964]
[1772566511204,4.48980174,1982.3,1981.3,0.00476396]
[1772566511403,4.48980174,1982.3,1981.3,4.5488936]
[1772566512011,4.48980174,1982.3,1981.3,4.8012436]
[1772566512602,4.48980174,1982.3,1981.3,4.5488936]
[1772566515112,4.48980174,1982.3,1981.3,0.00476396]
[1772566516005,4.48980174,1982.1,1981.3,0.00476396]
[1772566516210,4.48980174,1981.9,1981.3,0.00476396]
[1772566516505,4.49595468,1981.9,1980.6,16.60154134]
[1772566516709,4.49595468,1981.9,1979.7,21.90392722]
[1772566516710,2.74986662,1980.7,1979.5,4.8738845]
[1772566517015,7.855,1980.6,1979.7,4.8738845]
[1772566517209,7.856,1980.5,1979.7,4.8738845]
[1772566517411,7.856,1980.6,1979.9,4.87395876]
[1772566517614,7.856,1980.6,1979.9,0.00635504]
[1772566517615,0.00397509,1980.6,1979.9,0.00635504]
[1772566517811,0.90658229,1980.5,1979.5,4.87395876]
[1772566518107,0.00397509,1980.6,1979.3,4.91177498]
[1772566518108,0.91975639,1980.3,1979.3,4.91177498]
[1772566518316,7.86,1980.2,1979.2,6.22214746]
[1772566518506,7.861,1980.1,1979.2,6.22214746]
[1772566518704,7.862,1980.1,1979.2,6.22214746]
[1772566519012,8.24418864,1980.1,1979.2,6.2278166]
[1772566519213,0.40038318,1980.0,1979.2,6.2278166]
[1772566519610,0.40038318,1980.0,1979.2,0.86956796]
[1772566520314,0.40038318,1980.0,1978.3,5.36104074]
[1772566520615,0.38846802,1979.9,1978.3,5.36104074]
[1772566521013,0.38216916,1979.8,1978.3,5.36104074]
[1772566521206,0.38216916,1979.8,1978.3,5.36477835]
[1772566521412,0.38180633,1979.7,1978.3,5.36477835]
[1772566522413,0.38180633,1979.7,1978.0,6.837]
[1772566522414,3.16374236,1979.3,1978.0,5.37238354]
[1772566522606,0.41387574,1978.8,1977.7,5.37238354]
[1772566523621,0.41835963,1978.8,1977.7,5.37873076]
[1772566524315,0.41835963,1978.8,1977.7,0.00634722]
[1772566524617,0.41835963,1978.8,1977.3,5.4174189]
[1772566525012,0.41835963,1978.8,1977.5,5.4174189]
[1772566525614,0.41835963,1978.8,1977.5,5.42363187]
[1772566526016,0.67102963,1978.8,1977.5,5.42363187]
[1772566526211,0.15556596,1978.6,1977.5,5.42363187]
[1772566526416,0.15556596,1978.4,1977.5,5.42363187]
[1772566528519,0.4034445,1978.2,1977.1,5.35796581]
[1772566529415,0.25715389,1978.8,1977.1,5.35796581]
[1772566529615,0.39632046,1978.6,1977.1,5.6146618]
[1772566529821,0.39003145,1978.5,1977.1,5.6146618]
[1772566530018,0.39003145,1978.5,1977.1,5.3617918]
[1772566531420,0.39003145,1978.5,1977.3,5.35953252]
[1772566531821,0.39003145,1978.5,1977.5,5.35953252]
[1772566532517,0.38349866,1978.7,1977.5,5.35953252]
[1772566532725,0.00448389,1978.8,1977.7,5.3546137]
[1772566533018,0.00448389,1978.8,1977.3,6.22036]
[1772566533019,0.00448389,1978.8,1977.9,5.3546137]
[1772566533221,0.3811346,1979.5,1978.1,5.35237176]
[1772566533718,0.3811346,1979.5,1978.3,5.35257523]
[1772566534016,0.37381455,1979.7,1978.3,5.35257523]
[1772566534220,0.37817322,1979.7,1978.3,5.35257523]
[1772566534518,0.37817322,1979.7,1978.5,5.22253353]
[1772566534719,0.37817322,1979.7,1978.5,5.22746013]
[1772566537327,0.79529707,1979.5,1978.4,5.16927093]
[1772566537527,0.79529707,1979.5,1976.9,6.22142]
[1772566537528,5.31570054,1978.5,1976.9,5.16927093]
[1772566537727,5.31570054,1978.3,1976.9,5.16927093]
[1772566538320,5.32109184,1978.3,1976.9,5.17329963]
[1772566540533,13.22009184,1978.3,1977.1,5.16927093]
[1772566540826,13.22109184,1978.3,1977.1,5.16927093]
[1772566541032,5.31570054,1978.2,1977.1,5.16927093]
[1772566541226,7.9053913,1978.3,1977.1,5.16927093]
[1772566542027,7.9053913,1978.3,1977.3,5.16927093]
[1772566542229,7.9053913,1978.3,1977.5,5.16927093]
[1772566542435,0.0053913,1978.3,1977.5,5.16927093]
[1772566542735,7.906,1978.7,1977.5,5.16927093]
[1772566543233,7.909,1978.7,1977.7,5.16927093]
[1772566543527,4.42345647,1979.2,1977.9,5.16927093]
[1772566543528,5.31570054,1979.0,1977.9,5.16927093]
[1772566543832,7.91,1978.9,1977.9,5.16927093]
[1772566544330,5.32161353,1979.0,1977.9,5.16927093]
[1772566544530,13.23461353,1979.0,1978.1,5.16927093]
[1772566544728,7.91891299,1979.0,1978.1,5.16927093]
[1772566545229,13.23461353,1979.0,1978.1,5.16927093]
[1772566545628,0.00591299,1979.0,1978.1,5.16927093]
[1772566545825,0.00591299,1979.0,1978.0,0.25277]
[1772566545826,0.00591299,1979.0,1978.3,5.16927093]
[1772566546023,6.55020709,1979.3,1978.3,5.16927093]
[1772566546332,12.08683647,1979.5,1978.3,5.16927093]
[1772566546534,6.57047718,1979.4,1978.7,5.16927093]
[1772566546828,5.31570054,1979.3,1978.2,5.16927093]
[1772566547030,6.56924542,1979.2,1978.7,5.17364117]
[1772566547231,5.31570054,1979.1,1978.5,5.16927093]
[1772566547431,11.88494596,1979.0,1978.5,5.16927093]
[1772566547732,5.31570054,1979.1,1978.5,5.16927093]
[1772566547936,4.17083647,1979.2,1978.5,5.16927093]
[1772566547937,11.73320522,1979.0,1978.5,5.16927093]
[1772566548128,11.73340013,1978.9,1978.2,5.6605027]
[1772566548332,5.15477864,1978.9,1978.2,5.66687589]
[1772566548634,7.922,1979.0,1978.2,5.66687589]
[1772566548936,6.58338778,1978.9,1978.2,5.66687589]
[1772566549535,11.73816642,1978.9,1978.2,5.66687589]
[1772566549732,6.58338778,1978.8,1978.2,5.66687589]
[1772566552341,7.922,1979.0,1978.2,5.66687589]
[1772566552931,13.07677864,1979.0,1978.2,5.66687589]
[1772566553131,7.922,1979.0,1978.2,5.66687589]
[1772566553331,9.32561511,1979.2,1978.2,5.66687589]
[1772566553534,7.943,1979.2,1978.2,5.66687589]
[1772566554137,13.09777864,1979.2,1978.2,5.66687589]
[1772566555140,5.15477864,1979.1,1978.2,5.66687589]
[1772566555641,5.15477864,1979.0,1978.2,5.66687589]
[1772566556541,5.15477864,1978.9,1978.2,5.66687589]
[1772566556839,13.11177864,1978.8,1978.2,5.66687589]
[1772566557434,7.957,1978.8,1978.2,5.66687589]
[1772566557637,7.961,1979.1,1978.2,5.66687589]
[1772566557841,5.15477864,1979.0,1978.2,5.66687589]
[1772566558442,5.15477864,1979.1,1978.2,5.66687589]
[1772566560043,7.965,1979.2,1978.4,5.6605027]
[1772566560246,7.965,1979.2,1978.6,5.6605027]
[1772566560536,0.00583983,1979.4,1978.6,5.6605027]
[1772566560942,5.16061847,1979.4,1978.6,5.6605027]
[1772566561240,5.16061847,1979.4,1978.3,5.6605027]
[1772566561241,5.15477864,1979.3,1978.3,5.6605027]
[1772566561442,5.15477864,1979.3,1978.2,0.00637319]
[1772566561642,5.15477864,1979.2,1978.2,5.66687589]
[1772566561845,0.00583983,1979.4,1978.6,5.6605027]
[1772566562733,5.16061847,1979.4,1978.6,5.6605027]
[1772566562940,5.16061847,1979.4,1978.5,5.6605027]
[1772566563138,5.16061847,1979.4,1978.3,5.6605027]
[1772566564442,5.15477864,1979.2,1978.3,5.6605027]
[1772566564642,5.15477864,1979.0,1978.3,5.6605027]
[1772566565038,7.99,1979.1,1978.3,5.6605027]
[1772566565039,5.15477864,1978.8,1978.3,5.6605027]
[1772566565546,5.15477864,1979.2,1978.4,0.25272]
[1772566565748,14.23362995,1979.1,1978.5,5.6605027]
[1772566565951,7.995,1979.1,1978.5,5.6605027]
[1772566566647,13.15861847,1979.4,1978.5,5.6605027]
[1772566566847,0.00583983,1979.4,1978.7,5.6605027]
[1772566567447,5.16061847,1979.4,1978.7,5.6605027]
[1772566568542,5.15477864,1980.0,1979.1,5.6605027]
[1772566568742,6.19064528,1979.9,1979.1,5.6605027]
[1772566569346,5.15477864,1980.0,1979.3,5.6605027]
[1772566569546,5.15919478,1980.0,1979.3,5.6605027]
[1772566570145,0.00441614,1980.0,1979.3,5.6605027]
[1772566572554,5.15477864,1980.3,1979.5,5.6605027]
[1772566572949,13.16977864,1980.5,1979.5,5.6605027]
[1772566573152,5.15477864,1980.7,1979.9,5.6605027]
[1772566573550,0.00504884,1980.7,1980.1,5.6605027]
[1772566574056,5.15982748,1980.7,1979.9,5.66472509]
[1772566575055,0.00504884,1980.7,1979.9,5.66472509]
[1772566575262,5.15982748,1980.7,1979.9,5.91724509]
[1772566575454,0.00504884,1980.7,1979.9,5.91724509]
[1772566576157,13.17477864,1980.6,1979.9,0.00422239]
[1772566576361,8.02,1980.6,1979.9,5.66472509]
[1772566576862,0.00504884,1980.7,1979.9,5.66472509]
[1772566577263,0.00504884,1980.7,1980.1,5.6605027]
[1772566577963,5.81348718,1980.7,1980.1,5.6605027]
[1772566578964,0.00504884,1980.7,1980.1,5.6605027]
[1772566579662,5.59709626,1981.2,1980.3,5.80977974]
[1772566580162,5.59709626,1981.2,1980.4,5.80977974]
[1772566580563,5.60234796,1981.2,1980.4,5.80977974]
[1772566582764,5.60234796,1981.2,1980.5,0.25245]
[1772566582958,5.60234796,1981.2,1980.4,5.80977974]
[1772566583362,5.59709626,1981.0,1980.2,5.80977974]
[1772566583958,5.59709626,1981.0,1980.0,12.88627974]
[1772566584164,5.59709626,1981.0,1980.1,5.80977974]
[1772566584662,5.59709626,1981.0,1980.3,5.80977974]
[1772566584866,5.59709626,1981.0,1980.1,5.80977974]
[1772566585162,5.59709626,1980.8,1980.1,5.80977974]
[1772566585364,9.42809626,1980.7,1980.1,5.80977974]
[1772566585861,3.831,1980.7,1980.1,5.80977974]
[1772566586062,8.018,1981.1,1980.1,6.06227974]
[1772566586261,5.59709626,1981.1,1980.1,6.06227974]
[1772566586463,9.42809626,1981.1,1980.1,6.06227974]
[1772566587366,9.42809626,1981.1,1980.4,3.37860883]
[1772566587560,8.018,1981.5,1980.6,3.35054676]
[1772566587561,5.59709626,1981.5,1980.6,3.35054676]
[1772566588666,5.6031148,1981.5,1980.6,3.35054676]
[1772566588866,5.6031148,1981.5,1980.1,13.02555]
[1772566588867,5.6031148,1981.5,1980.7,3.56436734]
[1772566591874,5.59709626,1981.4,1980.4,3.29023341]
[1772566592667,5.59709626,1981.2,1980.4,3.29023341]
[1772566594267,3.831,1981.3,1980.6,3.30848626]
[1772566594769,5.6031148,1981.5,1980.6,3.30848626]
[1772566598773,5.6031148,1981.5,1980.8,3.47592061]
[1772566598970,5.6031148,1981.5,1980.3,3.47592061]
[1772566599474,5.59709626,1981.2,1980.3,3.47592061]
[1772566599674,5.59709626,1981.1,1980.3,3.47592061]
[1772566599874,5.59709626,1981.0,1980.3,3.47592061]
[1772566600678,3.831,1981.1,1980.5,3.47671619]
[1772566601178,5.59709626,1981.4,1980.6,0.25244]
[1772566601775,5.59709626,1981.4,1980.6,0.26197375]
[1772566601978,5.59709626,1981.4,1980.7,0.00953375]
[1772566602378,5.59709626,1981.4,1980.6,0.25244]
[1772566602681,5.59709626,1981.4,1980.6,0.47876066]
[1772566604077,5.59709626,1981.4,1980.3,0.19411455]
[1772566604281,6.29079395,1981.2,1980.2,0.36949121]
[1772566604675,6.32935062,1981.0,1980.2,0.36949121]
[1772566604874,8.024,1981.1,1979.9,0.00422239]
[1772566604875,6.32935062,1980.8,1979.9,0.00422239]
[1772566606476,6.32935062,1980.8,1979.9,0.13262405]
[1772566607881,6.32935062,1980.8,1980.1,0.10992814]
[1772566608777,6.31258357,1981.1,1980.3,0.11256277]
[1772566609785,6.31203973,1980.9,1979.9,0.11787283]
[1772566610482,6.31203973,1980.9,1980.1,0.14105528]
[1772566611383,6.31203973,1980.9,1979.9,0.00422239]
[1772566611384,6.29317103,1980.8,1979.9,0.00422239]
[1772566611576,6.29317103,1980.6,1979.9,0.00422239]
[1772566612277,6.29317103,1980.6,1979.9,0.12775861]
[1772566612585,6.29317103,1980.6,1980.1,0.17887845]
[1772566612786,6.26549991,1980.8,1980.1,0.17887845]
[1772566613080,6.26549991,1981.0,1980.3,0.1695614]
[1772566614582,6.26549991,1981.0,1979.9,0.00422239]
[1772566614778,6.26549991,1981.0,1979.9,0.19297961]
[1772566615184,6.26549991,1981.0,1980.1,0.17940957]
[1772566615389,6.26549991,1981.0,1980.3,0.18042334]
[1772566616284,6.26549991,1981.0,1980.2,0.25249]
[1772566616587,6.26549991,1981.0,1980.3,0.14905794]
[1772566616786,6.26173046,1981.4,1980.5,0.13968201]
[1772566616984,6.26173046,1981.2,1980.5,0.13968201]
[1772566617582,6.26173046,1981.2,1980.6,0.39315587]
[1772566617790,6.26173046,1981.2,1980.7,0.14071587]
[1772566618986,6.24751065,1981.4,1980.7,0.14071587]
[1772566619383,6.24751065,1981.4,1980.8,0.40275758]
[1772566620286,0.00601854,1981.5,1980.5,6.21034]
[1772566620287,0.00601854,1981.5,1981.1,0.12831716]
[1772566620491,6.25331021,1982.4,1981.5,0.12831716]
[1772566620696,6.25331021,1982.4,1980.9,12.95179]
[1772566620697,6.25331021,1982.4,1981.6,0.38062716]
[1772566620891,6.25331021,1982.4,1981.7,0.11889136]
[1772566621092,6.25331021,1982.4,1981.2,0.11889136]
[1772566621390,6.25833709,1982.4,1981.2,0.12300997]
[1772566621993,6.25833709,1982.4,1981.4,0.11090491]
[1772566622189,6.25833709,1982.4,1981.3,0.25235]
[1772566622589,6.25833709,1982.4,1981.3,0.28040807]
[1772566622793,6.25833709,1982.4,1980.8,0.2524]
[1772566623189,6.25833709,1982.4,1980.8,0.27512777]
[1772566623390,6.29161178,1982.2,1980.9,0.02382297]
[1772566624095,6.29161178,1982.0,1980.9,0.02880478]
[1772566624598,6.29161178,1982.0,1981.1,0.04998307]
[1772566625399,6.29161178,1982.0,1981.3,0.0415854]
[1772566625998,6.29161178,1982.0,1981.2,0.25236]
[1772566626195,6.29161178,1982.0,1980.9,0.00498181]
[1772566626596,6.29161178,1982.0,1981.0,0.32096469]
[1772566627296,6.29161178,1982.0,1980.9,0.00498181]
[1772566627297,6.54387178,1982.0,1980.9,0.00498181]
[1772566627996,6.25216182,1981.5,1980.1,6.38050703]
[1772566628201,0.25231,1981.6,1980.2,0.05562134]
[1772566628202,6.25216182,1981.3,1980.2,0.05562134]
[1772566628601,6.25216182,1981.3,1980.3,0.25247]
[1772566629098,6.25216182,1981.3,1980.3,0.25828293]
[1772566632802,6.25216182,1981.3,1980.7,0.25242]
[1772566633502,6.2703323,1981.7,1980.7,0.25242]
[1772566634099,6.2703323,1981.7,1981.1,0.25237]
[1772566634494,6.26758361,1981.9,1981.1,0.25237]
[1772566634696,6.26758361,1982.1,1981.3,0.25235]
[1772566635000,5.98904596,1982.4,1982.1,0.25224]
[1772566635299,5.98904596,1982.4,1981.5,6.20722]
[1772566635300,5.28801908,1982.6,1981.9,1.22157579]
[1772566635498,5.28801908,1982.6,1982.0,1.47491828]
[1772566635798,5.80729848,1983.8,1982.5,1.85312986]
[1772566636001,5.80729848,1983.8,1982.5,14.78208986]
[1772566636203,5.81194859,1983.8,1982.7,1.88354406]
[1772566636700,5.81194859,1983.8,1982.9,1.89383873]
[1772566636901,0.00465011,1983.8,1983.1,1.89381873]
[1772566637104,0.00465011,1983.8,1983.3,1.64169873]
[1772566637306,5.80729848,1984.0,1983.3,1.64169873]
[1772566637496,5.80729848,1984.4,1983.3,1.64169873]
[1772566637905,5.98495483,1984.8,1983.6,1.6240755]
[1772566638102,5.98495483,1985.1,1984.3,1.6227081]
[1772566638402,5.98495483,1985.9,1985.2,0.25184]
[1772566638596,5.98495483,1985.9,1985.1,1.39625724]
[1772566638597,5.98495483,1987.2,1985.5,7.59088724]
[1772566638798,5.98495483,1987.2,1986.1,6.19255]
[1772566638997,5.80293062,1988.5,1987.0,5.79640603]
[1772566639197,5.80293062,1988.2,1987.0,5.79640603]
[1772566639397,5.80698824,1988.2,1987.2,5.79640603]
[1772566639604,5.80698824,1988.2,1987.0,0.00390837]
[1772566639903,5.80293062,1987.9,1987.0,0.00390837]
[1772566640403,5.80293062,1987.4,1986.5,5.79640603]
[1772566640708,5.80293062,1988.1,1986.7,5.79640603]
[1772566640911,5.80293062,1988.1,1986.6,6.744]
[1772566640912,5.80293062,1988.1,1986.9,5.79640603]
[1772566641203,6.18319,1989.3,1986.6,12.93725]
[1772566641204,5.80293062,1989.4,1987.9,5.79640603]
[1772566641403,5.80293062,1988.9,1988.0,11.98328603]
[1772566641605,5.80293062,1989.2,1988.1,5.79640603]
[1772566641911,5.80293062,1989.2,1987.9,5.79640603]
[1772566642105,5.80293062,1988.9,1987.9,0.00446324]
[1772566642305,5.80293062,1988.2,1987.0,12.55640603]
[1772566642507,5.80293062,1988.2,1987.4,11.98520603]
[1772566642706,5.80293062,1989.1,1987.5,5.79640603]
[1772566642910,5.80293062,1989.1,1987.9,5.79640603]
[1772566643106,5.80293062,1989.1,1987.2,6.18942]
[1772566643107,5.80293062,1988.9,1987.0,5.79640603]
[1772566643308,5.80293062,1988.6,1987.1,6.765]
[1772566643708,5.80293062,1988.6,1987.0,0.00536765]
[1772566643909,5.80293062,1988.1,1987.0,0.00536765]
[1772566644410,5.80293062,1987.8,1987.0,0.00536765]
[1772566644610,5.80915095,1987.8,1987.0,0.00536765]
[1772566644811,0.00622033,1987.8,1987.1,5.79640603]
[1772566645012,0.00622033,1987.8,1987.0,6.78936765]
[1772566645013,5.80915095,1987.8,1987.0,0.00536765]
[1772566645314,5.80915095,1987.8,1987.0,5.80177368]
[1772566645611,5.80293062,1988.1,1987.2,5.79640603]
[1772566645812,5.80293062,1989.1,1987.5,5.79640603]
[1772566646013,5.80293062,1989.1,1988.1,5.79640603]
[1772566646207,5.80293062,1989.1,1988.2,11.98271603]
[1772566646403,5.80293062,1989.1,1988.3,6.801]
[1772566646702,5.80293062,1988.9,1988.3,6.801]
[1772566646906,0.0054539,1989.1,1988.4,11.98209603]
[1772566647109,5.80293062,1989.5,1988.7,5.79640603]
[1772566647309,5.80293062,1989.8,1988.9,5.79640603]
[1772566647510,5.80293062,1989.8,1988.9,18.79549603]
[1772566647710,5.80293062,1990.4,1989.4,12.23007603]
[1772566647913,5.80293062,1991.3,1989.5,5.79640603]
[1772566648112,5.80293062,1991.3,1988.8,5.79640603]
[1772566648113,5.80293062,1990.5,1988.8,5.79640603]
[1772566648408,5.80293062,1990.5,1988.3,6.18599]
[1772566648409,5.80293062,1989.7,1988.3,12.62240603]
[1772566648604,5.80724195,1989.7,1988.3,6.826]
[1772566648805,5.80293062,1989.2,1988.1,6.831]
[1772566649004,5.80293062,1989.2,1988.2,5.79640603]
[1772566649216,5.80293062,1989.2,1988.2,11.98270603]
[1772566649411,0.00431133,1989.7,1988.9,5.79640603]
[1772566649708,0.00431133,1989.7,1988.8,6.18444]
[1772566649709,5.80724195,1989.7,1988.8,6.839]
[1772566649911,5.80724195,1989.7,1988.6,5.79640603]
[1772566650108,5.80724195,1989.7,1988.4,6.85318926]
[1772566650305,5.80293062,1989.2,1988.4,0.00618926]
[1772566650506,5.80293062,1989.6,1988.4,5.80259529]
[1772566651015,5.80293062,1989.6,1988.6,5.79640603]
[1772566651313,5.80293062,1989.4,1988.4,0.00618926]
[1772566651713,5.80293062,1989.2,1988.4,0.00618926]
[1772566652321,5.80293062,1989.6,1988.4,5.80259529]
[1772566653212,5.80293062,1989.4,1988.4,0.00618926]
[1772566653708,5.80293062,1989.4,1988.4,5.80259529]
[1772566654118,5.80293062,1989.2,1988.4,0.00618926]
[1772566655111,5.80293062,1989.2,1987.4,5.79640603]
[1772566655418,5.80293062,1988.4,1987.5,6.18849]
[1772566655617,5.80293062,1989.4,1987.6,5.79640603]
[1772566655913,5.80293062,1988.9,1987.1,6.908]
[1772566656123,5.80293062,1988.7,1987.1,6.91428557]
[1772566656316,5.80293062,1988.5,1987.1,0.00628557]
[1772566656819,5.80293062,1988.0,1987.1,0.00628557]
[1772566657118,5.80826762,1988.0,1987.1,0.00628557]
[1772566657316,5.80826762,1988.0,1986.5,0.25168]
[1772566657514,5.80826762,1988.0,1986.1,5.79640603]
[1772566657515,5.80293062,1987.8,1986.1,5.79640603]
[1772566657714,5.80293062,1987.8,1986.1,12.24095603]
[1772566657914,5.80293062,1987.8,1986.2,5.79640603]
[1772566658110,5.80293062,1987.8,1986.4,5.79640603]
[1772566658315,5.80293062,1987.6,1986.6,5.79640603]
[1772566658913,5.80293062,1987.6,1986.4,0.00438159]
[1772566658914,5.80293062,1987.4,1986.4,0.00438159]
[1772566659315,5.80293062,1987.2,1986.4,5.80078762]
[1772566659620,8.265337,1988.0,1986.4,0.00438159]
[1772566659621,5.80293062,1987.9,1986.4,0.00438159]
[1772566659819,5.80293062,1987.4,1986.4,0.00438159]
[1772566660314,5.80293062,1987.2,1986.4,0.00438159]
[1772566660816,6.66682944,1987.1,1986.4,0.00438159]
[1772566661014,5.80293062,1987.4,1986.4,5.80078762]
[1772566661215,5.80293062,1987.4,1985.9,5.79640603]
[1772566661516,5.80293062,1987.4,1985.7,6.04818603]
[1772566661721,5.80293062,1987.0,1985.7,6.04818603]
[1772566661912,5.80293062,1987.0,1985.9,6.04816603]
[1772566662117,6.66682944,1987.0,1985.6,5.79640603]
[1772566662313,5.80293062,1987.9,1986.4,11.98831603]
[1772566662519,5.80293062,1987.9,1986.5,0.25168]
[1772566662719,5.80293062,1987.7,1986.8,5.79640603]
[1772566663219,0.005337,1988.0,1987.2,5.79640603]
[1772566663414,0.005337,1988.0,1987.4,5.79640603]
[1772566663615,0.005337,1988.0,1987.3,6.978]
[1772566663814,5.80293062,1987.9,1987.2,0.00529698]
[1772566664017,5.80293062,1987.9,1986.6,5.79640603]
[1772566664219,5.80293062,1987.6,1986.6,12.78440603]
[1772566664514,5.80293062,1987.6,1986.1,5.79640603]
[1772566664714,5.80293062,1987.3,1986.1,5.79640603]
[1772566665118,5.80293062,1987.3,1986.1,5.80185536]
[1772566665324,5.80293062,1987.1,1986.1,0.00544933]
[1772566665823,5.80293062,1986.7,1986.1,0.00544933]
[1772566666018,6.192277,1988.0,1986.1,0.00544933]
[1772566666019,5.80293062,1987.1,1986.3,6.04811603]
[1772566666218,5.80293062,1987.4,1986.4,5.79640603]
[1772566666616,5.80293062,1987.4,1986.5,6.04809603]
[1772566666818,5.80293062,1987.9,1986.9,6.04804603]
[1772566667020,5.80293062,1987.9,1986.9,13.06304603]
[1772566667219,0.005337,1988.0,1987.2,5.79640603]
[1772566667727,0.005337,1988.0,1987.4,5.79640603]
[1772566667922,0.005337,1988.0,1987.4,12.82040603]
[1772566668122,5.80293062,1988.3,1987.5,6.068804]
[1772566668415,5.80293062,1988.3,1987.3,0.25159]
[1772566668614,5.80293062,1988.3,1987.4,6.068804]
[1772566668817,0.86389882,1988.2,1987.5,6.068804]
[1772566669021,5.75095127,1988.2,1987.3,6.068804]
[1772566669219,0.0043093,1988.2,1987.5,6.07448998]
[1772566669421,0.0043093,1988.2,1987.7,6.068804]
[1772566669617,5.75095127,1988.5,1987.7,6.068804]
[1772566669820,5.75095127,1988.5,1987.5,0.00568598]
[1772566670019,5.75095127,1988.3,1986.9,17.12541203]
[1772566670216,5.75095127,1988.1,1986.9,13.111804]
[1772566670418,5.75095127,1988.1,1986.9,6.068804]